bitfinex/quotes_ETHUSD_20250223
["timestamp","ask_amount","ask_price","bid_price","bid_amount"]
[1740281308979,4.38819,2761.8,2761.2,3.82472034]
[1740281309328,6.62071,2761.9,2761.4,0.8162]
[1740281309477,0.72356611,2761.8,2761.4,1.55078967]
[1740281309679,6.62075,2761.9,2761.4,0.8162]
[1740281309908,3.62075,2761.9,2761.4,0.8162]
[1740281313192,7.24154,2761.9,2761.4,0.8162]
[1740281313514,0.7788,2761.8,2761.4,0.8162]
[1740281313714,0.7788,2761.8,2761.4,1.18956574]
[1740281314717,6.03861165,2761.8,2761.2,4.59543034]
[1740281315213,6.03861165,2761.8,2761.2,0.97382034]
[1740281315401,2.41777165,2761.8,2761.2,4.59533034]
[1740281316393,3.62069,2761.9,2761.4,0.7707]
[1740281316591,7.24148,2761.9,2761.4,0.7707]
[1740281316798,8.25965165,2762.0,2761.4,1.23022703]
[1740281316999,4.63897165,2762.0,2761.4,1.23022703]
[1740281317297,3.62072,2761.9,2761.4,1.23022703]
[1740281323745,3.62084,2761.8,2761.4,0.7707]
[1740281323903,5.25981165,2761.8,2761.4,0.7707]
[1740281324237,3.62109,2761.6,2761.2,0.7821]
[1740281324436,0.7846,2761.7,2761.2,4.40364]
[1740281324805,3.62084,2761.8,2761.2,4.40364]
[1740281325041,3.62084,2761.8,2761.2,1.610729]
[1740281325336,6.04428165,2761.9,2761.3,3.62137]
[1740281326204,1.63897165,2761.9,2761.4,4.40337]
[1740281326707,3.0,2762.0,2761.4,4.40337]
[1740281326904,6.62062,2762.0,2761.4,4.40337]
[1740281327302,3.62039,2762.2,2761.7,0.7821]
[1740281327517,2.42357165,2762.3,2761.8,3.62078]
[1740281327737,6.04377165,2762.3,2761.8,3.62078]
[1740281328107,3.0,2762.2,2761.8,3.62078]
[1740281328412,3.62008,2762.4,2761.9,0.261]
[1740281328612,8.85985,2762.6,2762.0,1.170278]
[1740281328613,10.49882165,2762.6,2762.0,1.170278]
[1740281328923,5.25901165,2762.4,2762.0,0.7821]
[1740281329127,6.04361165,2762.4,2762.0,0.7821]
[1740281330727,9.66377165,2762.4,2762.0,0.7821]
[1740281330927,6.04361165,2762.4,2762.0,0.7821]
[1740281331358,3.61984,2762.6,2762.0,0.7821]
[1740281331520,4.63897165,2762.5,2762.0,4.40259]
[1740281331730,4.63897165,2762.5,2762.0,5.231023]
[1740281332057,1.63897165,2762.7,2762.2,3.62028]
[1740281332226,3.61985,2762.6,2762.0,5.231023]
[1740281332413,7.23975,2762.6,2762.0,5.231023]
[1740281332612,3.7672673,2762.9,2762.3,0.7821]
[1740281332846,5.25855165,2762.8,2762.3,0.7821]
[1740281333855,0.1478573,2762.9,2762.4,0.8114]
[1740281334014,0.1478573,2762.9,2762.4,4.43142]
[1740281334213,0.1478573,2762.9,2762.5,0.443142]
[1740281334419,0.1478573,2762.9,2762.4,4.43135]
[1740281334633,0.1478573,2762.9,2762.5,3.61989]
[1740281334979,0.1478573,2762.9,2762.4,4.43135]
[1740281335151,0.1478573,2762.9,2762.4,8.05131]
[1740281335320,0.1478573,2762.9,2762.8,0.8114]
[1740281335519,0.1478573,2762.9,2762.8,1.254506]
[1740281335715,0.1478573,2762.9,2762.8,4.874016]
[1740281336228,0.1478573,2762.9,2762.8,10.264016]
[1740281340159,0.1478573,2762.9,2762.8,10.53317803]
[1740281340333,0.18274962,2762.9,2762.8,6.644506]
[1740281340663,0.18274962,2762.9,2762.8,5.39]
[1740281340664,3.7672373,2762.9,2762.8,5.39]
[1740281340958,3.80213617,2762.9,2762.8,5.39]
[1740281341154,0.18275617,2762.9,2762.1,9.5595623]
[1740281341348,3.62001,2762.5,2762.2,0.261]
[1740281341547,3.62001,2762.5,2762.3,0.96191023]
[1740281341746,0.03448132,2762.4,2762.3,0.96191023]
[1740281342548,3.61971,2762.7,2762.3,0.96191023]
[1740281342944,0.03449897,2762.6,2762.3,0.96191023]
[1740281346359,3.65435897,2762.6,2762.3,0.96191023]
[1740281351699,3.62011,2762.4,2762.1,6.1989]
[1740281351852,3.62043,2762.1,2762.0,0.70794791]
[1740281352369,3.65481281,2762.1,2762.0,0.70794791]
[1740281352687,4.43001281,2762.1,2762.0,0.70794791]
[1740281353490,4.39563,2762.1,2762.0,0.70794791]
[1740281354384,3.62043,2762.1,2762.0,0.70794791]
[1740281355601,3.62018,2762.3,2762.0,0.70794791]
[1740281356072,3.62043,2762.1,2762.0,0.70794791]
[1740281365301,4.41543,2762.1,2762.0,0.70794791]
[1740281366012,3.62078,2761.9,2761.6,0.261]
[1740281367186,3.62078,2761.9,2761.8,0.73729242]
[1740281368907,4.41545,2762.1,2761.8,0.73729242]
[1740281369095,3.62062,2762.0,2761.8,0.73729242]
[1740281369991,3.62032,2762.2,2761.8,1.53769242]
[1740281370191,3.62055,2762.1,2761.8,1.53769242]
[1740281370391,3.62058,2762.0,2761.8,1.53769242]
[1740281370608,3.62051,2762.1,2761.8,1.53769242]
[1740281371126,3.62037,2762.2,2761.8,1.53769242]
[1740281371275,3.62043,2762.1,2761.8,1.53769242]
[1740281371475,0.795,2762.5,2761.8,5.70039266]
[1740281371704,0.795,2762.5,2762.0,3.62053]
[1740281371907,0.795,2762.7,2762.1,0.8004]
[1740281372209,7.41466,2762.7,2762.2,3.6203]
[1740281372527,7.41464,2762.7,2762.2,4.424333]
[1740281373804,3.61985,2762.6,2762.2,0.804123]
[1740281373983,3.62011,2762.4,2761.9,6.1772]
[1740281374791,0.795,2762.7,2761.9,6.1772]
[1740281375112,3.62047,2762.1,2762.0,0.261]
[1740281376991,3.62047,2762.1,2761.8,0.73729242]
[1740281377311,3.62069,2761.9,2761.8,0.99829242]
[1740281378311,3.62069,2761.9,2761.8,0.73729242]
[1740281378711,3.62091,2761.8,2761.5,0.261]
[1740281381324,3.62103,2761.7,2761.5,0.261]
[1740281381890,3.62112,2761.6,2761.3,0.261]
[1740281382307,3.62112,2761.6,2761.3,0.75822615]
[1740281382494,3.62112,2761.6,2761.3,0.261]
[1740281382819,3.62128,2761.5,2761.3,0.261]
[1740281383013,3.62128,2761.5,2761.1,0.8235]
[1740281383200,3.62128,2761.5,2761.2,0.261]
[1740281385817,3.62128,2761.5,2761.1,0.8235]
[1740281386005,3.62137,2761.4,2761.2,0.261]
[1740281386383,3.37559264,2761.7,2761.0,5.39]
[1740281386617,4.45024,2761.1,2761.0,5.39]
[1740281387491,3.62195,2761.0,2760.8,7.656]
[1740281388814,3.62187,2761.0,2760.8,7.656]
[1740281389127,3.62187,2761.0,2760.8,7.395]
[1740281389829,3.622,2760.9,2760.8,7.395]
[1740281390126,3.6224,2760.6,2760.3,0.261]
[1740281391012,3.62263,2760.5,2760.1,5.39]
[1740281391211,3.6227,2760.4,2760.2,0.261]
[1740281392200,7.24546,2760.4,2760.2,0.261]
[1740281392531,7.24544,2760.4,2760.2,0.261]
[1740281392901,3.6227,2760.4,2760.2,0.261]
[1740281395426,3.62327,2760.0,2759.8,6.2135]
[1740281395723,3.62328,2760.0,2759.8,5.39]
[1740281396207,3.62326,2760.0,2759.8,5.39]
[1740281396797,7.24653,2760.0,2759.8,5.39]
[1740281396996,3.62326,2760.0,2759.8,5.39]
[1740281398132,3.62331,2759.9,2759.5,0.7702]
[1740281398332,3.62345,2759.8,2759.4,7.397]
[1740281398506,3.62345,2759.8,2759.5,0.261]
[1740281398924,7.247,2759.8,2759.5,0.261]
[1740281399427,3.62345,2759.8,2759.5,0.261]
[1740281400352,3.62359,2759.7,2759.5,0.261]
[1740281400944,3.62345,2759.8,2759.5,0.261]
[1740281401536,7.24702,2759.8,2759.5,0.261]
[1740281401848,3.62345,2759.8,2759.5,0.261]
[1740281402457,7.24702,2759.8,2759.5,0.261]
[1740281402949,3.62359,2759.7,2759.5,0.261]
[1740281403418,0.8219,2759.9,2759.5,0.261]
[1740281403619,3.62345,2759.8,2759.5,0.261]
[1740281406743,1.3088,2760.4,2759.9,3.62322]
[1740281406941,0.7588,2760.4,2760.0,0.7813]
[1740281407136,3.7588,2760.4,2760.0,0.7813]
[1740281407338,4.38147,2760.4,2760.0,0.7813]
[1740281407523,3.62286,2760.3,2760.0,0.7813]
[1740281407720,4.17284,2760.3,2759.6,0.7813]
[1740281408047,3.62347,2759.8,2759.5,0.261]
[1740281408741,0.7588,2760.2,2759.5,0.261]
[1740281408924,3.62302,2760.2,2759.5,0.261]
[1740281409123,3.62302,2760.2,2759.7,0.7813]
[1740281410167,7.24606,2760.2,2759.7,0.7813]
[1740281411468,0.55,2760.3,2759.7,1.0423]
[1740281411620,3.62371,2759.6,2759.5,0.7813]
[1740281411828,3.62371,2759.6,2759.5,0.261]
[1740281412565,3.6241,2759.3,2759.2,6.1713]
[1740281412724,3.6241,2759.3,2759.2,0.261]
[1740281413037,3.62437,2759.1,2759.0,0.7813]
[1740281413233,3.62437,2759.1,2759.0,1.0423]
[1740281414142,3.62437,2759.1,2759.0,0.7813]
[1740281414346,3.62463,2758.9,2758.8,0.8221]
[1740281414546,3.62463,2758.9,2758.7,5.651]
[1740281414547,3.62476,2758.8,2758.7,5.651]
[1740281414860,3.62476,2758.8,2758.5,0.8221]
[1740281414861,3.62502,2758.6,2758.5,0.261]
[1740281415165,3.62502,2758.6,2758.1,0.73428044]
[1740281415367,3.62542,2758.3,2758.2,0.261]
[1740281416546,3.62517,2758.5,2758.2,0.261]
[1740281416753,3.62497,2758.7,2758.2,0.261]
[1740281416954,0.7974,2759.1,2758.3,0.8221]
[1740281417155,3.6244,2759.1,2758.4,3.62519]
[1740281417350,3.6244,2759.1,2758.6,0.8221]
[1740281417598,3.6245,2759.0,2758.6,0.8221]
[1740281418363,7.97147,2759.4,2758.8,3.62465]
[1740281418571,4.3474,2759.4,2758.8,3.62465]
[1740281418769,3.62437,2759.1,2758.6,4.44708]
[1740281419077,3.62437,2759.1,2758.7,0.5172131]
[1740281419078,3.6245,2759.0,2758.7,0.5172131]
[1740281419267,7.24882,2759.1,2758.6,0.8221]
[1740281419677,3.62437,2759.1,2758.6,0.8221]
[1740281420083,3.62418,2759.3,2758.6,4.44708]
[1740281420574,3.62426,2759.2,2758.6,8.07203]
[1740281420879,3.62418,2759.3,2758.7,0.8797081]
[1740281421074,3.62426,2759.2,2758.7,0.8797081]
[1740281421379,3.62418,2759.3,2758.7,0.8797081]
[1740281421582,3.62418,2759.3,2758.8,3.62475]
[1740281421875,4.44403,2759.6,2759.1,0.7899]
[1740281422274,4.17384,2759.5,2759.1,0.7899]
[1740281423177,3.62404,2759.4,2759.1,0.7899]
[1740281423487,0.8203,2759.6,2759.1,1.0509]
[1740281423686,4.44403,2759.6,2759.1,1.0509]
[1740281424148,3.62386,2759.5,2759.1,1.0509]
[1740281424770,0.8203,2759.6,2759.1,1.0509]
[1740281425118,6.62366,2759.7,2759.1,4.67518]
[1740281425283,3.62373,2759.6,2759.1,4.67518]
[1740281425984,6.62366,2759.7,2759.1,4.67518]
[1740281427055,10.24736,2759.7,2759.1,4.67518]
[1740281427256,10.24735,2759.7,2759.1,4.67518]
[1740281427689,0.8203,2759.8,2759.1,1.95204376]
[1740281427851,0.8203,2760.0,2759.5,0.7899]
[1740281428255,3.62331,2759.9,2759.5,0.7899]
[1740281428983,0.8203,2760.0,2759.2,3.62414]
[1740281428984,3.62346,2759.8,2759.3,0.7899]
[1740281429579,7.24699,2759.8,2759.3,0.7899]
[1740281429777,3.62346,2759.8,2759.3,0.7899]
[1740281430006,0.8203,2760.0,2759.3,0.7899]
[1740281430293,0.55,2759.9,2759.3,0.7899]
[1740281430469,3.6238,2759.6,2759.1,6.4409]
[1740281430785,0.55,2759.9,2759.1,6.4409]
[1740281430786,3.6236,2759.7,2759.1,6.4409]
[1740281430983,0.8203,2760.0,2759.1,10.06518]
[1740281431192,3.62353,2759.8,2759.2,3.62422]
[1740281431390,3.62353,2759.8,2759.2,4.99316]
[1740281432387,3.62353,2759.8,2759.2,1.36894]
[1740281432761,3.62358,2759.7,2759.2,1.36894]
[1740281434188,3.62332,2759.9,2759.3,3.62399]
[1740281434370,3.62332,2759.9,2759.4,0.7969]
[1740281434768,0.82,2760.2,2759.4,1.375883]
[1740281434972,0.82,2760.2,2759.6,4.42054]
[1740281435387,4.44296,2760.2,2759.6,4.42054]
[1740281436087,0.82,2760.2,2759.7,3.62357]
[1740281436289,4.44294,2760.2,2759.6,0.7969]
[1740281436879,4.44294,2760.2,2759.6,4.42061]
[1740281437494,0.82,2760.2,2759.7,3.62357]
[1740281438809,0.82,2760.2,2759.8,3.62344]
[1740281439502,0.82,2760.2,2759.6,4.42053]
[1740281439694,0.82,2760.2,2759.6,5.14734621]
[1740281440117,4.44292,2760.2,2759.6,4.42053]
[1740281441206,4.44292,2760.2,2759.6,0.7969]
[1740281441409,4.44292,2760.2,2759.6,4.4206]
[1740281443713,3.62312,2760.1,2759.6,0.7969]
[1740281443877,3.62335,2759.9,2759.3,4.37919]
[1740281444077,0.7562,2759.8,2759.3,4.37919]
[1740281444394,0.7562,2759.8,2759.4,3.88494]
[1740281444593,0.7562,2759.8,2759.4,4.92207916]
[1740281444904,0.7562,2759.8,2759.4,1.29813916]
[1740281445279,0.7562,2759.8,2759.5,0.261]
[1740281447007,3.62335,2759.9,2759.5,0.261]
[1740281447509,4.37906,2760.3,2759.5,0.261]
[1740281447712,4.37899,2760.3,2759.8,3.62337]
[1740281448214,0.7562,2760.3,2759.8,3.62337]
[1740281448510,3.0,2760.4,2759.9,0.7551]
[1740281448708,3.0,2760.4,2759.9,4.3784]
[1740281448912,3.0,2760.4,2760.0,3.62318]
[1740281449109,4.37854,2760.7,2759.9,4.3784]
[1740281449501,3.62253,2760.5,2759.9,4.37834]
[1740281449810,7.37854,2760.7,2759.9,4.37834]
[1740281449982,3.62253,2760.5,2759.9,4.37834]
[1740281450978,3.62253,2760.5,2759.9,0.7551]
[1740281451192,4.37915,2760.2,2759.7,4.37861]
[1740281451395,0.7562,2760.2,2759.7,8.00211]
[1740281451596,3.62275,2760.4,2759.9,3.6233]
[1740281451799,4.37866,2760.6,2760.1,0.7551]
[1740281452204,6.62219,2760.8,2760.2,3.62282]
[1740281452408,5.9962,2761.1,2760.5,0.7551]
[1740281452409,0.7562,2761.1,2760.5,0.7551]
[1740281453017,0.7562,2761.1,2760.6,3.6223]
[1740281453223,4.37796,2761.1,2760.6,3.6223]
[1740281453401,4.37796,2761.1,2760.5,0.7551]
[1740281453602,3.62188,2761.0,2760.5,4.37762]
[1740281454439,7.37802,2761.1,2760.6,3.62239]
[1740281454736,3.7562,2761.1,2760.6,3.62239]
[1740281454937,7.37798,2761.1,2760.6,3.62239]
[1740281456188,0.7562,2761.1,2760.5,1.65200575]
[1740281456388,3.7562,2761.1,2760.6,3.62238]
[1740281456625,7.37532,2761.4,2760.9,0.77]
[1740281456789,10.99678,2761.4,2760.9,0.77]
[1740281456985,4.17149,2761.3,2760.9,0.77]
[1740281457308,3.62148,2761.3,2760.9,0.77]
[1740281458536,3.62173,2761.2,2760.7,0.7823]
[1740281459252,3.62148,2761.3,2760.7,4.40456]
[1740281459401,7.24304,2761.3,2760.7,4.40456]
[1740281459843,3.62148,2761.3,2760.7,4.40456]
[1740281460254,3.62148,2761.3,2760.7,0.7823]
[1740281460548,3.62149,2761.3,2760.8,3.62201]
[1740281460895,7.93651,2761.6,2761.0,3.62178]
[1740281461333,3.62125,2761.5,2761.0,3.62178]
[1740281461553,4.38623,2761.8,2761.3,3.62146]
[1740281461710,3.62076,2761.9,2761.4,3.62133]
[1740281462252,0.55,2761.8,2761.4,3.62133]
[1740281462403,6.99611264,2762.1,2761.5,3.62119]
[1740281462607,3.62046,2762.1,2761.6,4.40327]
[1740281462838,3.0,2762.0,2761.6,4.40327]
[1740281463001,3.0,2762.0,2761.6,0.7823]
[1740281464317,6.62059,2762.0,2761.6,0.7823]
[1740281465022,3.62059,2762.0,2761.6,0.7823]
[1740281465635,3.6209,2761.8,2761.6,1.0433]
[1740281465836,3.62095,2761.7,2761.6,1.0433]
[1740281466036,3.62095,2761.7,2761.6,0.261]
[1740281466723,0.7654,2761.9,2761.3,0.261]
[1740281466928,3.62135,2761.4,2761.3,0.261]
[1740281469005,3.62135,2761.4,2761.1,5.651]
[1740281469310,3.62161,2761.2,2761.1,5.651]
[1740281469530,3.62161,2761.2,2761.1,0.261]
[1740281470051,3.6215,2761.3,2761.1,0.261]
[1740281470208,3.62135,2761.4,2761.1,0.261]
[1740281470732,3.62155,2761.3,2761.1,0.261]
[1740281471045,3.62135,2761.4,2761.1,0.261]
[1740281471342,3.62155,2761.3,2761.1,0.261]
[1740281472409,3.62135,2761.4,2761.1,0.261]
[1740281472611,3.62151,2761.3,2761.1,0.261]
[1740281473045,3.62135,2761.4,2761.1,0.261]
[1740281473046,3.62161,2761.2,2761.1,0.261]
[1740281475121,4.42765,2761.4,2761.1,0.261]
[1740281475449,7.24279,2761.4,2761.1,0.261]
[1740281475653,3.62135,2761.4,2761.1,0.261]
[1740281475825,3.62118,2761.6,2761.1,0.727568]
[1740281476150,3.62089,2761.8,2761.2,4.40433]
[1740281476345,3.62089,2761.8,2761.2,4.40432]
[1740281476652,3.62122,2761.5,2761.2,0.7828]
[1740281476946,3.62095,2761.7,2761.2,0.7828]
[1740281476947,3.62115,2761.6,2761.2,0.7828]
[1740281478152,3.62115,2761.6,2761.2,4.4044]
[1740281478351,3.62115,2761.6,2761.2,5.233118]
[1740281478948,3.62084,2761.8,2761.2,5.233118]
[1740281479151,3.621,2761.7,2761.2,5.233118]
[1740281480028,3.621,2761.7,2761.2,1.611518]
[1740281480851,3.621,2761.7,2761.2,5.233118]
[1740281481212,3.62077,2761.9,2761.5,0.8286]
[1740281482316,5.24,2762.1,2761.6,3.62106]
[1740281483343,4.37945,2762.3,2761.6,3.62106]
[1740281483536,3.6203,2762.2,2761.6,3.62106]
[1740281483732,3.6203,2762.2,2761.6,0.807095]
[1740281483939,3.62043,2762.1,2761.6,0.807095]
[1740281484656,3.62065,2762.0,2761.6,0.807095]
[1740281486257,3.62071,2761.9,2761.6,0.807095]
[1740281486432,3.62071,2761.9,2761.7,0.8286]
[1740281487356,3.62102,2761.7,2761.5,0.261]
[1740281487558,3.62092,2761.8,2761.5,0.261]
[1740281488124,3.6207,2761.9,2761.5,0.261]
[1740281490057,0.7592,2762.0,2761.4,0.8286]
[1740281490266,3.6211,2761.6,2761.4,0.261]
[1740281490464,3.6211,2761.6,2761.4,0.99158145]
[1740281490661,3.6211,2761.6,2761.3,0.5494118]
[1740281491035,3.6209,2761.8,2761.3,0.5494118]
[1740281491239,7.2418,2761.8,2761.3,4.1708718]
[1740281491447,3.62096,2761.7,2761.4,0.8286]
[1740281492363,3.62069,2761.9,2761.4,4.44991]
[1740281492543,3.62069,2761.9,2761.4,5.87710018]
[1740281492951,0.7592,2762.0,2761.5,3.62117]
[1740281493150,4.92959,2762.2,2761.5,3.62117]
[1740281493452,4.92959,2762.2,2761.4,5.87710018]
[1740281493453,3.6206,2762.0,2761.4,5.87710018]
[1740281493766,3.6206,2762.0,2761.4,5.87707018]
[1740281493953,3.62043,2762.1,2761.4,5.87707018]
[1740281494349,3.62043,2762.1,2761.5,4.2638282]
[1740281494350,3.62064,2762.0,2761.5,4.2638282]
[1740281494667,3.6209,2761.8,2761.5,0.6426482]
[1740281495042,3.6209,2761.8,2761.4,4.44994]
[1740281495567,3.62069,2762.0,2761.4,4.44994]
[1740281495754,3.62072,2761.9,2761.4,4.44994]
[1740281496867,3.62069,2762.0,2761.4,4.44994]
[1740281497167,3.62069,2762.0,2761.4,8.07119]
[1740281497369,3.62069,2762.0,2761.5,0.86206018]
[1740281497970,7.24133,2762.0,2761.5,0.86206018]
[1740281498562,7.24129,2762.0,2761.5,0.86206018]
[1740281498767,3.62064,2762.0,2761.5,0.86206018]
[1740281498971,3.62064,2762.0,2761.5,4.48316018]
[1740281499175,3.62036,2762.2,2761.7,4.41414]
[1740281499377,7.24077,2762.2,2761.7,0.7932]
[1740281499673,3.62036,2762.2,2761.7,0.7932]
[1740281500254,3.62045,2762.1,2761.7,0.7932]
[1740281500466,3.62036,2762.2,2761.7,4.41412]
[1740281501054,7.24078,2762.2,2761.7,4.41412]
[1740281501256,3.62036,2762.2,2761.7,5.25809435]
[1740281501576,7.24077,2762.2,2761.7,5.25809435]
[1740281501775,3.0,2762.3,2761.8,3.62082]
[1740281502157,6.62021,2762.3,2761.8,3.62082]
[1740281502576,6.62021,2762.3,2761.9,0.7932]
[1740281503277,4.44436,2762.6,2762.0,7.50195]
[1740281503479,3.61999,2762.5,2762.0,3.88147]
[1740281504045,3.61999,2762.5,2762.1,0.7932]
[1740281505062,3.61986,2762.6,2762.1,0.7932]
[1740281505244,7.23976,2762.6,2762.1,0.7932]
[1740281505455,3.61986,2762.6,2762.1,1.34945614]
[1740281505661,3.61978,2762.6,2762.2,3.62029]
[1740281506055,0.1478573,2762.9,2762.3,0.7932]
[1740281506260,0.1478573,2762.9,2762.5,0.7932]
[1740281506462,0.1478573,2762.9,2762.5,4.41298]
[1740281506684,3.7672373,2762.9,2762.5,1.596491]
[1740281507371,0.1478573,2762.9,2762.5,1.596491]
[1740281507885,0.1478573,2762.9,2762.5,0.803291]
[1740281508185,0.1478573,2762.9,2762.8,0.7932]
[1740281508363,0.1478573,2762.9,2762.8,1.0542]
[1740281508683,0.1478573,2762.9,2762.8,1.521595]
[1740281509584,0.1478573,2762.9,2762.8,1.0542]
[1740281509969,0.1478573,2762.9,2762.8,0.261]
[1740281510175,3.61977,2762.6,2762.5,0.261]
[1740281511252,3.61964,2762.7,2762.5,0.261]
[1740281511677,3.61977,2762.6,2762.5,0.261]
[1740281514104,3.61964,2762.7,2762.5,0.261]
[1740281514305,3.61957,2762.8,2762.5,0.261]
[1740281514476,0.1478573,2762.9,2762.6,0.776]
[1740281515704,0.1478573,2762.9,2762.6,4.39567]
[1740281516368,0.1478573,2762.9,2762.6,0.776]
[1740281517399,3.7672673,2762.9,2762.6,0.776]
[1740281517601,0.1478573,2762.9,2762.6,0.776]
[1740281517767,0.1478573,2762.9,2762.7,0.5124236]
[1740281517975,0.1478573,2762.9,2762.6,4.39569]
[1740281518305,0.1478573,2762.9,2762.6,9.78569]
[1740281518805,0.1478573,2762.9,2762.6,6.166]
[1740281519714,3.61964,2762.7,2762.6,5.651]
[1740281520809,3.61964,2762.7,2762.6,5.39]
[1740281523066,3.61964,2762.7,2762.6,5.9551]
[1740281523273,3.61954,2762.8,2762.6,6.1677]
[1740281524191,3.61954,2762.8,2762.6,0.7777]
[1740281524401,3.61954,2762.8,2762.4,1.0387]
[1740281525817,0.1478573,2762.9,2762.4,1.0387]
[1740281525977,0.1478573,2762.9,2762.5,4.085785]
[1740281526593,3.7672473,2762.9,2762.5,4.085785]
[1740281526790,0.1478573,2762.9,2762.6,3.61977]
[1740281527387,0.1478573,2762.9,2762.7,3.61964]
[1740281527578,0.1478573,2762.9,2762.8,0.361964]
[1740281527783,0.1478573,2762.9,2762.6,3.61971]
[1740281528178,0.1478573,2762.9,2762.7,3.61959]
[1740281528411,0.1478573,2762.9,2762.8,0.7777]
[1740281528613,0.1478573,2762.9,2762.8,4.39721]
[1740281530284,0.1478573,2762.9,2762.8,0.7777]
[1740281530486,0.1478573,2762.9,2762.8,5.737913]
[1740281530799,0.1478573,2762.9,2762.8,1.340703]
[1740281530982,0.1478573,2762.9,2762.6,6.1677]
[1740281532505,3.7672673,2762.9,2762.6,6.1677]
[1740281533213,3.61964,2762.7,2762.6,5.39]
[1740281534389,4.38324,2762.7,2762.6,5.39]
[1740281535194,3.61952,2762.8,2762.6,5.39]
[1740281535399,0.1478573,2762.9,2762.6,5.39]
[1740281535595,0.1478573,2762.9,2762.6,6.7342]
[1740281535987,3.7672873,2762.9,2762.6,6.7342]
[1740281537129,0.1478573,2762.9,2762.6,6.7342]
[1740281537491,3.7672673,2762.9,2762.6,6.7342]
[1740281537686,3.61964,2762.7,2762.6,5.929]
[1740281538022,3.61964,2762.7,2762.6,5.39]
[1740281538626,0.1478573,2762.9,2762.7,0.7899]
[1740281538824,0.1478573,2762.9,2762.7,4.40947]
[1740281539126,0.1478573,2762.9,2762.7,0.7899]
[1740281539305,0.1478573,2762.9,2762.8,0.979955]
[1740281541526,0.1478573,2762.9,2762.6,5.39]
[1740281543441,0.7936,2762.8,2762.6,5.39]
[1740281543809,3.61964,2762.7,2762.6,5.39]
[1740281546320,0.1478573,2762.9,2762.1,0.261]
[1740281546321,3.62017,2762.3,2762.1,0.261]
[1740281546634,7.24047,2762.3,2762.1,0.261]
[1740281547130,3.6203,2762.2,2762.1,0.261]
[1740281547437,3.62017,2762.3,2762.1,0.261]
[1740281547598,7.24044,2762.3,2761.9,2.65203905]
[1740281547798,3.62017,2762.3,2761.9,2.65203905]
[1740281549345,3.6203,2762.2,2761.9,2.65203905]
[1740281549532,3.6203,2762.2,2761.9,1.93879143]
[1740281549935,3.62017,2762.3,2761.9,1.93879143]
[1740281550344,3.62017,2762.3,2762.0,1.09496114]
[1740281551651,3.6203,2762.2,2762.0,1.09496114]
[1740281551955,3.6203,2762.2,2761.9,1.14889143]
[1740281552151,0.7936,2762.4,2761.8,5.39]
[1740281552452,3.62065,2762.0,2761.8,5.651]
[1740281552653,3.62066,2762.0,2761.8,5.651]
[1740281552861,3.62044,2762.1,2761.8,5.39]
[1740281553555,0.7833,2762.0,2761.8,5.39]
[1740281553754,3.6209,2761.8,2761.6,0.261]
[1740281554821,3.62095,2761.7,2761.6,0.261]
[1740281555219,3.62108,2761.6,2761.5,7.394]
[1740281555960,3.62122,2761.5,2761.4,0.261]
[1740281556333,3.62122,2761.5,2761.2,5.39]
[1740281556534,3.62122,2761.5,2761.2,6.64417021]
[1740281556738,3.62122,2761.5,2761.2,0.99317021]
[1740281556942,3.62147,2761.4,2761.1,0.71360208]
[1740281557159,3.62156,2761.3,2761.1,0.71360208]
[1740281557968,3.62161,2761.2,2761.1,0.71360208]
[1740281558162,3.62161,2761.2,2760.7,5.39]
[1740281558163,3.62174,2761.1,2760.7,5.39]
[1740281558336,3.62213,2760.8,2760.7,5.39]
[1740281558541,3.62213,2760.8,2760.7,0.72555844]
[1740281558744,3.62201,2760.9,2760.6,0.261]
[1740281558943,3.62226,2760.7,2760.6,0.261]
[1740281559140,3.62226,2760.7,2760.2,8.1483]
[1740281559347,3.62273,2760.4,2760.2,7.656]
[1740281559541,3.62273,2760.4,2760.2,7.395]
[1740281559775,3.62279,2760.3,2760.2,7.395]
[1740281559940,7.2455,2760.4,2760.2,7.395]
[1740281560307,3.62273,2760.4,2760.2,7.395]
[1740281562961,7.24546,2760.4,2760.2,7.395]
[1740281563273,3.62273,2760.4,2760.2,7.395]
[1740281564179,4.39555,2760.5,2760.2,7.395]
[1740281564666,0.773,2760.5,2760.2,7.395]
[1740281564978,3.62268,2760.4,2760.2,7.395]
[1740281567979,3.62279,2760.3,2760.2,7.395]
[1740281568287,3.62273,2760.4,2760.2,7.395]
[1740281569282,4.3956,2760.5,2760.2,7.395]
[1740281569283,0.773,2760.5,2760.2,7.395]
[1740281570383,4.39557,2760.5,2760.2,7.395]
[1740281571192,4.39557,2760.5,2760.1,0.7533]
[1740281572900,4.39557,2760.5,2759.9,1.0143]
[1740281573197,4.39557,2760.5,2759.9,1.65473]
[1740281573999,3.62266,2760.4,2759.9,1.65473]
[1740281574765,3.62279,2760.3,2759.9,0.7533]
[1740281574966,3.62293,2760.2,2759.9,0.7533]
[1740281575196,3.62312,2760.1,2759.9,0.261]
[1740281575374,3.62293,2760.2,2759.9,0.261]
[1740281575578,4.44305,2760.1,2759.9,0.261]
[1740281575894,3.62338,2759.9,2759.7,5.651]
[1740281576065,3.62345,2759.8,2759.5,0.261]
[1740281576595,4.44304,2760.1,2759.5,0.261]
[1740281576898,3.62325,2760.0,2759.5,0.261]